Cogmind - Beta 11.1 --- EXPLORER MODE // 2022.05.05 @ 15:36:21 Player: Grimbling Result: Destroyed by Y-64 Sentinel with Wave Gun Performance ------------- Evolutions (5) 2500 Regions Visited (12) 2400 Robots Destroyed (126) 630 Value Destroyed (4925) 4925 Prototype IDs (20) 400 Alien Tech Used (0) 0 Bonus (0) 0 TOTAL SCORE: 10855 Bonus ------- None Cogmind --------- Core Integrity 0/1000 Matter 300/300 Energy 99/100 System Corruption 4% Temperature Cool (9) Movement Core (50) Location -5/Hub_04(d) Parts ------- > --- POWER (2) -------- (None) > --- PROPULSION (4) --- Armored Leg Improved VSS Leg > --- UTILITY (9) ------ Advanced Heat Sink Enhanced Optical Array Advanced Signal Interpreter > --- WEAPON (3) ------- (None) > --- INVENTORY (5) ---- Angular Momentum Engine Advanced Heat Sink Medium Storage Unit Improved Component Analysis Suite Peak State ------------ > --- POWER ------------ Angular Momentum Engine Light Antimatter Reactor > --- PROPULSION ------- Armored Leg Armored Leg Armored Leg Improved VSS Leg > --- UTILITY ---------- Improved Heat Sink Advanced Heat Sink Advanced Heat Sink Improved Coolant Injector Medium Storage Unit Advanced Sensor Array Advanced Signal Interpreter Improved Transmission Jammer Hardened Light Armor Plating > --- WEAPON ----------- Plasma Rifle Beamcaster Long-range Missile Launcher > --- INVENTORY -------- Light Fission Core Neutrino Core Improved Carbon-fiber Leg Improved Carbon-fiber Leg Advanced Heat Sink Advanced Heat Sink Advanced Heat Sink Heavy Laser Heavy Ion Cannon [Rating: 89] Favorites ----------- Power Light Angular Momentum Engine Engine Light Angular Momentum Engine Power Core Light Fission Core Reactor Light Antimatter Reactor Propulsion Improved Carbon-fiber Leg Leg Improved Carbon-fiber Leg Utility Advanced Heat Sink Device Advanced Heat Sink Storage Medium Storage Unit Processor Advanced Signal Interpreter Protection Improved Medium Armor Plating Weapon Plasma Rifle Energy Gun Plasma Rifle Energy Cannon Heavy Ion Cannon Launcher Long-range Missile Launcher Build | -11 -10 -9 -8 -7 -6 -6 -6 -5 -5 -5 -5 -5 ------- Run | Scr Mat Mat Mat Fac Fac Low Low Fac Ext Cet Arc Hub Slots Evolved 11 | . 1 2 2 2 2 . . 2 . . . . Power 1 | . . . 1 . . . . . . . . . Propulsion 2 | . 1 . 1 . . . . . . . . . Utility 7 | . . 2 . 2 2 . . 1 . . . . Weapon 1 | . . . . . . . . 1 . . . . Parts Attached 134 | 7 4 5 12 25 21 3 . 12 28 9 . 8 Power 20 | 1 . 1 2 4 3 . . . 6 2 . 1 Engine 12 | 1 . 1 1 4 2 . . . 2 . . 1 Core 6 | . . . 1 . 1 . . . 3 1 . . Reactor 2 | . . . . . . . . . 1 1 . . Propulsion 28 | 2 1 . 5 7 1 1 . 3 2 4 . 2 Treads . | . . . . . . . . . . . . . Leg 28 | 2 1 . 5 7 1 1 . 3 2 4 . 2 Wheel . | . . . . . . . . . . . . . Hover . | . . . . . . . . . . . . . Flight . | . . . . . . . . . . . . . Utility 58 | 2 . 3 2 8 11 2 . 8 15 2 . 5 Device 33 | 1 . 2 1 3 7 1 . 5 10 . . 3 Storage 2 | 1 . . . . . . . 1 . . . . Processor 6 | . . 1 1 1 1 . . 1 1 . . . Hackware . | . . . . . . . . . . . . . Protection 17 | . . . . 4 3 1 . 1 4 2 . 2 Artifact . | . . . . . . . . . . . . . Weapon 28 | 2 3 1 3 6 6 . . 1 5 1 . . Energy Gun 23 | 2 3 1 3 4 5 . . 1 3 1 . . Energy Cannon 3 | . . . . 2 . . . . 1 . . . Ballistic Gun . | . . . . . . . . . . . . . Ballistic Cannon . | . . . . . . . . . . . . . Launcher 2 | . . . . . 1 . . . 1 . . . Special Weapon . | . . . . . . . . . . . . . Impact Weapon . | . . . . . . . . . . . . . Slashing Weapon . | . . . . . . . . . . . . . Piercing Weapon . | . . . . . . . . . . . . . Special Melee Weapon . | . . . . . . . . . . . . . Unidentified Prototypes 6 | . 1 . . 3 2 . . . . . . . Parts Lost 46 | . . . 4 1 1 3 . . 15 17 2 3 Power 9 | . . . . 1 . . . . 3 4 . 1 Propulsion 14 | . . . 3 . . 1 . . 2 6 2 . Utility 14 | . . . . . 1 2 . . 5 4 . 2 Weapon 9 | . . . 1 . . . . . 5 3 . . Highest Loss Streak 17 | . . . 4 1 1 3 . . 6 17 2 3 To Critical Strikes 3 | . . . . . . 1 . . . 2 . . Average Slot Usage (%) 95 | . 97 99 96 99 99 99 100 100 93 63 34 33 Engine 8 | . 12 10 11 9 9 12 12 11 4 2 . 2 Core 2 | . . . 4 4 2 . . . 3 1 . . Leg 24 | . 34 30 29 28 25 24 25 22 21 14 9 6 Device 24 | . 12 19 16 18 27 30 31 29 28 19 5 12 Storage 6 | . 12 10 8 7 6 6 6 5 5 5 2 . Processor 6 | . . 9 8 9 6 4 . 3 7 11 11 11 Protection 5 | . . . . 6 8 7 12 9 4 2 5 . Energy Gun 12 | . 25 20 16 13 11 12 12 16 7 2 . . Naked Turns . | . . . . . . . . . . . . . Heaviest Build 68 | 20 22 25 30 54 61 57 57 68 63 52 25 18 Greatest Support 72 | 20 30 30 40 72 70 70 70 70 66 66 33 31 Greatest Overweight (x) 2 | . . . 2 . . . . . 1 1 . . Average Overweight (x) . | . . . . . . . . . . . . . Largest Inventory Capacity 10 | 10 10 10 10 10 10 10 10 10 10 10 10 5 Average Capacity 9 | 9 10 10 10 10 10 10 10 10 10 10 6 5 Most Carried 10 | 5 10 10 10 10 10 10 8 10 10 9 5 4 Average Carried 8 | 2 7 9 9 9 9 9 8 8 7 7 4 3 Final Capacity 10 | 10 10 10 10 10 10 10 10 10 10 10 5 5 Final Carried 10 | 5 10 10 10 10 10 8 8 10 9 3 5 4 Class Distribution -------------------- 34% | Hacker-Mutant 32% | Scavenger-Mutant 14% | Scavenger-Skirmisher 11% | Hacker-Skirmisher 6% | Scavenger-Tank Dominant Class ---------------- Hacker-Mutant | -10/Materials Scavenger-Mutant | -9/Materials Scavenger-Mutant | -8/Materials Scavenger-Mutant | -7/Factory Hacker-Mutant | -6/Factory Hacker-Mutant | -6/Lower Caves Scavenger-Mutant | -6/Lower Caves Scavenger-Tank | -5/Factory Hacker-Skirmisher | -5/Extension Hacker-Mutant | -5/Cetus Hacker-Mutant | -5/Archives Hacker-Mutant | -5/Hub_04(d) Resources | -11 -10 -9 -8 -7 -6 -6 -6 -5 -5 -5 -5 -5 ----------- Run | Scr Mat Mat Mat Fac Fac Low Low Fac Ext Cet Arc Hub Matter Collected 1843 | 270 40 50 100 220 227 85 13 100 647 . . 91 Remotely . | . . . . . . . . . . . . . Salvage Created 6264 | 48 413 604 327 679 689 317 78 1207 1832 70 . . Parts 204 | 4 23 24 14 24 20 3 3 34 54 1 . . Haulers Intercepted 4 | . 1 2 . . . . . 1 . . . . Recyclers Shooed 9 | . 2 . . 1 1 . . 1 4 . . . Parts Field Recycled . | . . . . . . . . . . . . . Retrieved Matter . | . . . . . . . . . . . . . Parts Self-Destructed . | . . . . . . . . . . . . . Prevented . | . . . . . . . . . . . . . Kills | -11 -10 -9 -8 -7 -6 -6 -6 -5 -5 -5 -5 -5 ------- Run | Scr Mat Mat Mat Fac Fac Low Low Fac Ext Cet Arc Hub Combat Hostiles Destroyed 94 | . 5 12 5 9 10 6 3 22 21 1 . . Guns 70 | . 4 8 4 7 10 5 3 20 9 . . . Cannons 6 | . . . . . . . . . 5 1 . . Classes Destroyed 15 | 1 5 1 . 2 1 1 . 1 3 . . . Worker 1 | . . . . . . . . 1 . . . . Builder 4 | . . . . . . . . . 4 . . . Tunneler 4 | 2 . . 1 . . . . 1 . . . . Hauler 4 | . 1 2 . . . . . 1 . . . . Recycler 9 | . 2 1 1 1 1 . . . 3 . . . Operator 3 | . . . . 2 . . . . 1 . . . Watcher 7 | . 2 1 . 1 . . . 1 2 . . . Swarmer 22 | . 2 5 . . . 2 3 7 3 . . . Grunt 31 | . 3 2 3 3 7 . . 8 5 . . . Brawler 1 | . . . . . . . . 1 . . . . Duelist 4 | . . . . . 1 . . 2 1 . . . Sentry 18 | . . 5 2 5 1 . . . 5 . . . Hunter 3 | . . . . . . . . . 3 . . . Programmer 8 | . . . . 1 1 . . 4 2 . . . Behemoth 2 | . . . . . . . . . 2 . . . Cetus Guard 1 | . . . . . . . . . . 1 . . Thug 1 | . . . . . . 1 . . . . . . Savage 3 | . . . . . . 3 . . . . . . Best Kill Streak 8 | 2 4 8 4 3 5 3 3 8 3 1 . . Combat Bots Only 7 | . 2 7 4 2 4 3 3 7 3 1 . . Max Kills in Single Turn 3 | 1 1 2 1 2 1 1 2 3 1 1 . . Gunslinging 1 | . . 1 . . . . 1 . . . . . Exploded . | . . . . . . . . . . . . . Melee . | . . . . . . . . . . . . . Uniques/NPCs Destroyed . | . . . . . . . . . . . . . Combat | -11 -10 -9 -8 -7 -6 -6 -6 -5 -5 -5 -5 -5 -------- Run | Scr Mat Mat Mat Fac Fac Low Low Fac Ext Cet Arc Hub Damage Taken 7899 | . 67 380 456 531 483 204 116 887 1992 2200 152 431 Core 1411 | . 19 54 172 97 38 8 11 98 237 490 66 121 Absorbed by Shields 58 | . . . . . . . . . 58 . . . Core Remaining (%) 87 | 100 92 86 68 86 . . 93 . . . . . Volleys Fired 364 | 4 20 41 26 39 39 16 4 48 114 13 . . Largest 3 | 2 2 2 2 2 2 2 2 3 3 2 . . Hottest 240 | 100 115 121 121 126 160 160 160 240 240 140 . . Shots Fired 765 | 8 39 81 51 78 77 32 8 143 228 20 . . Gun 694 | 8 39 81 51 78 77 32 8 143 170 7 . . Cannon 54 | . . . . . . . . . 41 13 . . Launcher 17 | . . . . . . . . . 17 . . . Special . | . . . . . . . . . . . . . Kinetic . | . . . . . . . . . . . . . Thermal 748 | 8 39 81 51 78 77 32 8 143 211 20 . . Explosive 17 | . . . . . . . . . 17 . . . Electromagnetic . | . . . . . . . . . . . . . Robot Hit Streak 32 | 6 16 27 24 23 32 11 6 27 27 9 . . Robot Miss Streak 4 | . 1 2 2 1 2 4 2 4 2 2 . . Penetration Max . | . . . . . . . . . . . . . Secondary Targets 10 | . . 1 2 1 1 . 2 1 2 . . . Max Gunslinging Chain 1 | . . 1 1 1 1 . 1 1 1 . . . Shots Hit Robots 603 | 6 28 67 44 69 65 23 6 122 158 15 . . Core Hits 277 | 2 15 20 16 31 37 10 3 73 66 4 . . Critical Kills . | . . . . . . . . . . . . . Critical Parts Destroyed . | . . . . . . . . . . . . . Critical Strikes 53 | 1 3 6 2 6 6 8 1 11 9 . . . Burn 53 | 1 3 6 2 6 6 8 1 11 9 . . . Melee Attacks . | . . . . . . . . . . . . . Impact . | . . . . . . . . . . . . . Slashing . | . . . . . . . . . . . . . Piercing . | . . . . . . . . . . . . . Sneak Attacks . | . . . . . . . . . . . . . Combat Hostiles . | . . . . . . . . . . . . . Follow-up Attacks . | . . . . . . . . . . . . . Damage Inflicted 12001 | 77 377 986 635 1089 1256 486 122 2757 3831 385 . . Guns 10818 | 77 377 986 635 1089 1256 486 122 2757 2919 114 . . Cannons 1040 | . . . . . . . . . 769 271 . . Explosions 143 | . . . . . . . . . 143 . . . Melee . | . . . . . . . . . . . . . Ramming . | . . . . . . . . . . . . . Kinetic . | . . . . . . . . . . . . . Thermal 11858 | 77 377 986 635 1089 1256 486 122 2757 3688 385 . . Explosive 143 | . . . . . . . . . 143 . . . Electromagnetic . | . . . . . . . . . . . . . Impact . | . . . . . . . . . . . . . Slashing . | . . . . . . . . . . . . . Piercing . | . . . . . . . . . . . . . Highest Corruption 5 | . . . . 2 1 5 5 2 4 4 4 4 Average Corruption 3 | . . . . 1 1 1 5 2 3 4 4 4 Corruption Purged . | . . . . . . . . . . . . . Corruption Blocked . | . . . . . . . . . . . . . Effects 89 | . . . . 6 2 11 3 2 58 3 1 3 Message Errors 26 | . . . . 3 1 3 1 1 13 2 . 2 Matter Fused 26 | . . . . 1 1 3 2 . 18 . 1 . Heat Flow Errors 9 | . . . . 1 . 1 . . 7 . . . Energy Discharges 8 | . . . . . . . . . 8 . . . Parts Rejected 2 | . . . . . . . . . . 1 . 1 Data Loss (minor) 6 | . . . . . . 3 . . 3 . . . Data Loss (major) 5 | . . . . . . 1 . . 4 . . . Misfires 2 | . . . . 1 . . . . 1 . . . Alerts 1 | . . . . . . . . . 1 . . . Weapon Failures 4 | . . . . . . . . 1 3 . . . Overload Shots . | . . . . . . . . . . . . . Overflow Damage 34 | . . . . . . . . . 28 6 . . Projectiles 9 | . . . . . . . . . 3 6 . . Explosions 25 | . . . . . . . . . 25 . . . Melee . | . . . . . . . . . . . . . Knockbacks . | . . . . . . . . . . . . . Impact . | . . . . . . . . . . . . . Kinetic . | . . . . . . . . . . . . . Secondary . | . . . . . . . . . . . . . Self-Inflicted Damage 276 | . . . . . . . . . 276 . . . Shots 10 | . . . . . . . . . 10 . . . Rammed . | . . . . . . . . . . . . . Targets Rammed 2 | . . . . . . . . . . 2 . . Kicked 2 | . . . . . . . . . . 2 . . Crushed . | . . . . . . . . . . . . . Highest Temperature 301 | 117 281 269 267 301 82 208 . 108 181 5 . . Average Temperature 80 | 65 114 116 123 71 49 103 . 30 33 3 . . Received Heat Transfer 3148 | . 45 207 441 390 309 9 . 243 327 961 36 180 Effects 5 | . 3 . 2 . . . . . . . . . Energy Bleed 2 | . . . 2 . . . . . . . . . Interference 3 | . 3 . . . . . . . . . . . Siege Activations . | . . . . . . . . . . . . . Robots Corrupted . | . . . . . . . . . . . . . Combat Hostiles . | . . . . . . . . . . . . . Parts Fried . | . . . . . . . . . . . . . Impact Corruptions . | . . . . . . . . . . . . . Robots Melted 18 | . 1 4 1 2 . 1 . 2 7 . . . Combat Hostiles 18 | . 1 4 1 2 . 1 . 2 7 . . . Parts Melted 129 | 1 4 7 5 19 11 7 1 35 39 . . . Heat Transferred 30840 | 296 1295 2923 1776 2960 3220 2000 400 7425 7925 620 . . Parts Sabotaged . | . . . . . . . . . . . . . Parts Stolen . | . . . . . . . . . . . . . Parts Stripped . | . . . . . . . . . . . . . Power Chain Reactions . | . . . . . . . . . . . . . Missiles Intercepted . | . . . . . . . . . . . . . Alert | -11 -10 -9 -8 -7 -6 -6 -6 -5 -5 -5 -5 -5 ------- Run | Scr Mat Mat Mat Fac Fac Low Low Fac Ext Cet Arc Hub Peak Influence 329 | 10 205 300 173 130 242 . . 329 258 64 52 103 Initial 47 | . 4 . 24 . 13 . . 39 47 44 . 9 Average 59 | 3 66 61 101 44 30 . . 114 63 15 16 26 Maximum Alert Level 1 | . 1 1 . . 1 . . 1 1 . . . Low Security (%) 92 | 100 97 91 100 100 98 . . 70 90 100 100 100 Level 1 7 | . 2 8 . . 1 . . 29 9 . . . Level 2 . | . . . . . . . . . . . . . Level 3 . | . . . . . . . . . . . . . Level 4 . | . . . . . . . . . . . . . Level 5 . | . . . . . . . . . . . . . High Security . | . . . . . . . . . . . . . Max Security . | . . . . . . . . . . . . . Squads Dispatched 14 | . . . 1 5 2 . . 3 1 . . 2 Investigation 4 | . . . . 1 . . . 1 . . . 2 Extermination 5 | . . . . 2 1 . . 2 . . . . Reinforcement 5 | . . . 1 2 1 . . . 1 . . . Assault . | . . . . . . . . . . . . . Garrison . | . . . . . . . . . . . . . Intercept . | . . . . . . . . . . . . . Searches Triggered . | . . . . . . . . . . . . . Construction Impeded . | . . . . . . . . . . . . . Haulers Reinforced . | . . . . . . . . . . . . . Active Scanning Responses . | . . . . . . . . . . . . . Cargo Convoy Interrupts 1 | . . . . . 1 . . . . . . . Stealth | -11 -10 -9 -8 -7 -6 -6 -6 -5 -5 -5 -5 -5 --------- Run | Scr Mat Mat Mat Fac Fac Low Low Fac Ext Cet Arc Hub Distress Signals 6 | . . . 1 . . . . 1 2 . . 2 Communications Jammed 54 | . . . . 2 1 . . 41 10 . . . Distress Signals 52 | . . . . . 1 . . 41 10 . . . Times Spotted 162 | . 8 14 11 17 19 6 3 28 30 11 4 11 Peak Tracking Total 9 | . 2 4 5 4 6 2 3 7 6 8 3 9 Tactical Retreats 9 | . . . 1 . 1 . . 3 3 . . 1 Traps | -11 -10 -9 -8 -7 -6 -6 -6 -5 -5 -5 -5 -5 ------- Run | Scr Mat Mat Mat Fac Fac Low Low Fac Ext Cet Arc Hub Traps Triggered 9 | . . 1 . 4 2 . . 2 . . . . Indirectly . | . . . . . . . . . . . . . Trap Hack Attempts . | . . . . . . . . . . . . . Triggered . | . . . . . . . . . . . . . Disarmed 5 | . . . . . . . . . . . . 5 Reprogrammed 11 | . 9 . . . . . . . 2 . . . Reused . | . . . . . . . . . . . . . Traps Extracted . | . . . . . . . . . . . . . Installed . | . . . . . . . . . . . . . Triggered . | . . . . . . . . . . . . . Machines | -11 -10 -9 -8 -7 -6 -6 -6 -5 -5 -5 -5 -5 ---------- Run | Scr Mat Mat Mat Fac Fac Low Low Fac Ext Cet Arc Hub Machines Disabled 15 | . . . 1 1 5 . . . 8 . . . Max in Single Turn 4 | . . . 1 . 4 . . . 3 . . . Garrison Access 3 | . . . . 1 2 . . . . . . . Energy Cycler 3 | . . . . . . . . . 3 . . . Machines Sabotaged . | . . . . . . . . . . . . . Garrisons Compromised . | . . . . . . . . . . . . . Overloaded Fab Kills . | . . . . . . . . . . . . . Hacking | -11 -10 -9 -8 -7 -6 -6 -6 -5 -5 -5 -5 -5 --------- Run | Scr Mat Mat Mat Fac Fac Low Low Fac Ext Cet Arc Hub Machines Accessed 49 | . 6 5 1 7 2 1 . 6 13 1 . 7 Terminals 36 | . 5 4 . 2 . . . 4 13 1 . 7 Fabricators 4 | . . . . 3 . . . 1 . . . . Repair Stations 2 | . . 1 . . . . . 1 . . . . Recycling Units 2 | . 1 . 1 . . . . . . . . . Scanalyzers 1 | . . . . 1 . . . . . . . . Garrison Access 3 | . . . . 1 2 . . . . . . . Total Hacks 129 | . 23 16 2 15 3 1 . 13 31 2 . 23 Successful 93 | . 15 14 1 9 2 1 . 8 26 1 . 16 Failed 36 | . 8 2 1 6 1 . . 5 5 1 . 7 Catastrophic 2 | . . . . 1 . . . . 1 . . . Database Lockouts . | . . . . . . . . . . . . . Manual 67 | . 12 9 . 12 . . . 6 17 . . 11 Terminals 108 | . 22 15 . 5 . . . 10 31 2 . 23 Fabricators 9 | . . . . 7 . . . 2 . . . . Repair Stations 2 | . . 1 . . . . . 1 . . . . Recycling Units 3 | . 1 . 2 . . . . . . . . . Scanalyzers 2 | . . . . 2 . . . . . . . . Garrison Access 4 | . . . . 1 3 . . . . . . . Terminal Hacks 50 | . 9 9 . 1 . 1 . 4 17 1 . 8 Prototype ID Bank 6 | . . 2 . 1 . . . 2 1 . . . Open Door 8 | . . . . . . 1 . 1 5 1 . . Branch Access Points 1 | . . . . . . . . . . . . 1 Emergency Access Points 1 | . . . . . . . . . . . . 1 Machine Index 3 | . 1 1 . . . . . . 1 . . . Terminal Index 1 | . . . . . . . . . . . . 1 Alert Level 1 | . . 1 . . . . . . . . . . Unreport Threat 10 | . 3 2 . . . . . 1 4 . . . Locate Traps 4 | . . . . . . . . . 3 . . 1 Disarm Traps 2 | . . . . . . . . . . . . 2 Reprogram Traps 5 | . 3 . . . . . . . 2 . . . Recall Investigation 1 | . 1 . . . . . . . . . . . Recall Reinforcements 1 | . . . . . . . . . . . . 1 Registered Prototypes 1 | . . 1 . . . . . . . . . . Zone Layout 5 | . 1 2 . . . . . . 1 . . 1 Fabricator Hacks 1 | . . . . 1 . . . . . . . . Build 1 | . . . . 1 . . . . . . . . Repair Station Hacks . | . . . . . . . . . . . . . Recycling Unit Hacks 2 | . 1 . 1 . . . . . . . . . Retrieve Components 2 | . 1 . 1 . . . . . . . . . Scanalyzer . | . . . . . . . . . . . . . Garrison Access Hacks 3 | . . . . 1 2 . . . . . . . Seal Access 3 | . . . . 1 2 . . . . . . . Unauthorized Hacks 37 | . 5 5 . 6 . . . 4 9 . . 8 Terminals 31 | . 5 4 . 2 . . . 3 9 . . 8 Track 1 | . . . . . . . . . 1 . . . Botnet 27 | . 5 4 . 2 . . . 3 8 . . 5 Detonate 2 | . . . . . . . . . . . . 2 Operators 1 | . . . . . . . . . . . . 1 Fabricators 3 | . . . . 3 . . . . . . . . Fabnet 3 | . . . . 3 . . . . . . . . Repair Stations 2 | . . 1 . . . . . 1 . . . . Mechanics 2 | . . 1 . . . . . 1 . . . . Recycling Units . | . . . . . . . . . . . . . Scanalyzers 1 | . . . . 1 . . . . . . . . Researchers 1 | . . . . 1 . . . . . . . . Garrison Access . | . . . . . . . . . . . . . Data Cores Recovered 1 | . . . . 1 . . . . . . . . Used . | . . . . . . . . . . . . . Hacking Detections 31 | . 4 2 1 5 . . . 4 7 1 . 7 Full Trace Events 4 | . . . . 1 . . . 1 . . . 2 Feedback Events . | . . . . . . . . . . . . . Feedback Blocked . | . . . . . . . . . . . . . Robot Schematics Acquired . | . . . . . . . . . . . . . Robots Built . | . . . . . . . . . . . . . Authchips . | . . . . . . . . . . . . . Time . | . . . . . . . . . . . . . Total Robot Build Rating . | . . . . . . . . . . . . . Part Schematics Acquired . | . . . . . . . . . . . . . Parts Built 1 | . . . . 1 . . . . . . . . Authchips . | . . . . . . . . . . . . . Time 53 | . . . . 53 . . . . . . . . Total Part Build Rating 6 | . . . . 6 . . . . . . . . Parts Repaired . | . . . . . . . . . . . . . Time . | . . . . . . . . . . . . . Parts Recycled . | . . . . . . . . . . . . . Recycled Matter . | . . . . . . . . . . . . . Retrieved Matter . | . . . . . . . . . . . . . Retrieved Components 9 | . 6 . 3 . . . . . . . . . Parts Scanalyzed . | . . . . . . . . . . . . . Part Schematics Acquired . | . . . . . . . . . . . . . Parts Damaged . | . . . . . . . . . . . . . Bothacking | -11 -10 -9 -8 -7 -6 -6 -6 -5 -5 -5 -5 -5 ------------ Run | Scr Mat Mat Mat Fac Fac Low Low Fac Ext Cet Arc Hub Used RIF Installer . | . . . . . . . . . . . . . Robots Hacked 4 | . . . . . 1 1 . . . . 1 1 Non-combat . | . . . . . . . . . . . . . Combat 4 | . . . . . 1 1 . . . . 1 1 Robot Hacks Applied . | . . . . . . . . . . . . . Relay Couplers Released . | . . . . . . . . . . . . . Fabnet Peak Effective % 9 | . . . . . 9 9 9 3 3 3 3 3 Autooverrided 4 | . . . . . 1 1 . . . . 1 1 Robots Rewired . | . . . . . . . . . . . . . Allies Hacked 1 | . . . . 1 . . . . . . . . Hacks Repelled . | . . . . . . . . . . . . . Allies | -11 -10 -9 -8 -7 -6 -6 -6 -5 -5 -5 -5 -5 -------- Run | Scr Mat Mat Mat Fac Fac Low Low Fac Ext Cet Arc Hub Total Allies 12 | . . . . 2 1 1 . . 6 . 1 1 Largest Group 3 | . . . . 2 1 1 . . 3 . 1 1 Highest-Rated Group 76 | . . . . 62 29 29 . . 76 . 64 29 Highest-Rated Ally 64 | . . . . 31 29 29 . . 31 . 64 29 Total Orders . | . . . . . . . . . . . . . Ally Attacks 36 | . . . . 11 4 . . . 15 . 3 3 Total Damage 576 | . . . . 153 39 . . . 215 . 112 57 Kills 1 | . . . . . . . . . 1 . . . Allies Corrupted 1 | . . . . 1 . . . . . . . . Allies Melted . | . . . . . . . . . . . . . Intel | -11 -10 -9 -8 -7 -6 -6 -6 -5 -5 -5 -5 -5 ------- Run | Scr Mat Mat Mat Fac Fac Low Low Fac Ext Cet Arc Hub Robot Analysis Total . | . . . . . . . . . . . . . Derelict Logs Recovered 2 | . . . . . . 2 . . . . . . Drone Launches . | . . . . . . . . . . . . . Drone Recoveries . | . . . . . . . . . . . . . Exploration | -11 -10 -9 -8 -7 -6 -6 -6 -5 -5 -5 -5 -5 ------------- Run | Scr Mat Mat Mat Fac Fac Low Low Fac Ext Cet Arc Hub Turns Passed 9674 | 128 513 707 431 1758 1472 765 108 1160 2194 172 35 231 Spaces Moved 6926 | 90 362 460 229 1267 1086 587 81 821 1522 103 46 272 Core 226 | 10 . . . . . . . . . . 37 179 Treads . | . . . . . . . . . . . . . Legs 6700 | 80 362 460 229 1267 1086 587 81 821 1522 103 9 93 Wheels . | . . . . . . . . . . . . . Hover . | . . . . . . . . . . . . . Flight . | . . . . . . . . . . . . . Fastest Speed 50 | 50 120 120 120 112 112 120 120 112 112 120 50 50 Average Speed 116 | 112 120 120 121 118 118 120 120 115 118 122 63 66 Slowest Speed 260 | 120 120 120 260 120 120 120 120 120 186 190 120 105 Overloaded Moves . | . . . . . . . . . . . . . Propulsion Burnouts . | . . . . . . . . . . . . . Robots Hopped . | . . . . . . . . . . . . . Cave-ins Triggered . | . . . . . . . . . . . . . Exploration Rate (%) 40 | 4 46 35 19 27 26 69 7 22 91 79 75 31 Regions Visited 12 Branch Regions 6 Pre-discovered Areas . | . . . . . . . . . . . . . Known Exits Taken 12 | 1 1 1 1 1 1 1 1 1 1 1 1 . Unknown Exits Taken . | . . . . . . . . . . . . . Scrap Searched 1 | . . . . . . 1 . . . . . . Spaces Dug 1 | . . . . . . . . . 1 . . . Terrain Destroyed 165 | . . . . . 22 . . . 143 . . . Melee . | . . . . . . . . . . . . . Projectile 5 | . . . . . . . . . 5 . . . AOE 160 | . . . . . 22 . . . 138 . . . Terrain Rammed . | . . . . . . . . . . . . . Walls Destroyed . | . . . . . . . . . . . . . Machines Disabled . | . . . . . . . . . . . . . Actions | -11 -10 -9 -8 -7 -6 -6 -6 -5 -5 -5 -5 -5 --------- Run | Scr Mat Mat Mat Fac Fac Low Low Fac Ext Cet Arc Hub Total 7837 | 105 402 535 331 1457 1193 615 84 915 1700 126 52 322 Wait 275 | . 4 22 54 80 19 10 . 25 19 . 4 38 Move 6914 | 89 361 459 228 1266 1085 586 80 820 1521 102 45 272 Hop . | . . . . . . . . . . . . . Pick Up 47 | 5 8 3 4 12 6 . . 1 6 . . 2 Fast Attach 69 | 7 2 2 7 13 15 1 . 4 12 3 . 3 Attach 40 | . 1 2 3 3 3 2 . 2 13 6 . 5 Detach 21 | . 1 1 1 3 3 . . 2 6 . 2 2 Swap 26 | . 1 1 2 10 3 . . 6 3 . . . Drop 79 | . 4 4 6 31 20 . . 7 6 . 1 . Fire 364 | 4 20 41 26 39 39 16 4 48 114 13 . . Melee . | . . . . . . . . . . . . . Ram . | . . . . . . . . . . . . . Kick 2 | . . . . . . . . . . 2 . . Crush . | . . . . . . . . . . . . . Escape Stasis . | . . . . . . . . . . . . . Rewire . | . . . . . . . . . . . . . Trap . | . . . . . . . . . . . . . Miscellaneous . | . . . . . . . . . . . . . Route ------- -11/Scrapyard -10/Materials -9/Materials (discovered 2 exits: *Mat / *Min) -8/Materials -7/Factory (discovered 2 exits: *Fac x2) -6/Factory (discovered 2 exits: *Fac / *Low) -6/Lower Caves -6/Lower Caves -5/Factory (discovered 2 exits: *Ext x2) -5/Extension (discovered 3 exits: *Fac x2 / *Cet) -5/Cetus -5/Archives -5/Hub_04(d) (discovered 2 exits: *Fac x2) History --------- Turn | Location | Event 5 | -11/Scrapyard | Identified exit to Materials 5 | -11/Scrapyard | Discovered exit to Materials (range 14) 129 | -11/Scrapyard | Entered Materials 129 | -10/Materials | Evolved 1 slot: Propulsion x1 317 | -10/Materials | Build established: Hacker-Mutant 547 | -10/Materials | Identified exit to Materials 547 | -10/Materials | Discovered exit to Materials (range 8) 642 | -10/Materials | Entered another Materials area 642 | -9/Materials | Evolved 2 slots: Utility x2 1016 | -9/Materials | Destroyed 7 combat bots 1112 | -9/Materials | Identified exit to Mines 1112 | -9/Materials | Discovered exit to Mines (range 13) 1218 | -9/Materials | Build established: Scavenger-Mutant 1333 | -9/Materials | Identified exit to Materials 1333 | -9/Materials | Discovered exit to Materials (range 4) 1349 | -9/Materials | Entered another Materials area 1349 | -8/Materials | Evolved 2 slots: Power x1, Propulsion x1 1498 | -8/Materials | Lost 4 parts (3n1w) 1761 | -8/Materials | Identified exit to Factory 1761 | -8/Materials | Discovered exit to Factory (range 8) 1780 | -8/Materials | Entered Factory 1780 | -7/Factory | Evolved 2 slots: Utility x2 2094 | -7/Factory | Build established: Scavenger-Skirmisher 2272 | -7/Factory | Fabricated Hvy. Shock Bomb Launcher (x1) 2439 | -7/Factory | Allied Derelicts emerged from ambush trap array 2604 | -7/Factory | Build established: Scavenger-Mutant 2715 | -7/Factory | Identified exit to Factory 2715 | -7/Factory | Discovered exit to Factory (range 5) 3405 | -7/Factory | Build established: Hacker-Mutant 3422 | -7/Factory | Discovered exit to Factory (range 5) 3538 | -7/Factory | Entered another Factory area 3538 | -6/Factory | Evolved 2 slots: Utility x2 3899 | -6/Factory | Local machine network offline 4098 | -6/Factory | Build established: Scavenger-Mutant 4114 | -6/Factory | Identified exit to Factory 4114 | -6/Factory | Discovered exit to Factory (range 9) 4645 | -6/Factory | Build established: Hacker-Mutant 4997 | -6/Factory | Cargo convoy interrupted 5002 | -6/Factory | Identified exit to Lower Caves 5002 | -6/Factory | Discovered exit to Lower Caves (range 6) 5010 | -6/Factory | Entered Lower Caves 5119 | -6/Lower Caves | Encountered a Warlord checkpoint 5561 | -6/Lower Caves | Ambushed by wild Derelicts 5633 | -6/Lower Caves | Lost 3 parts (1n2u) 5661 | -6/Lower Caves | Identified exit to Lower Caves 5661 | -6/Lower Caves | Discovered exit to Lower Caves (range 12) 5775 | -6/Lower Caves | Entered another Lower Caves area 5880 | -6/Lower Caves | Discovered exit to Factory (range 4) 5883 | -6/Lower Caves | Entered Factory 5883 | -5/Factory | Evolved 2 slots: Utility x1, Weapon x1 5884 | -5/Factory | Identified exit to Extension 6184 | -5/Factory | Build established: Scavenger-Tank 6644 | -5/Factory | Destroyed 7 combat bots 6827 | -5/Factory | Build established: Scavenger-Skirmisher 7043 | -5/Factory | Entered Extension 7047 | -5/Extension | Disrupted transfer network 7243 | -5/Extension | Rescued a captive Derelict 7315 | -5/Extension | Lost 3 parts (1n1u1w) 7348 | -5/Extension | Rescued a captive Derelict 7349 | -5/Extension | Rescued a captive Derelict 7794 | -5/Extension | Spotted B-75 Beast 7800 | -5/Extension | Destroyed B-75 Beast 7803 | -5/Extension | Spotted B-75 Beast 7823 | -5/Extension | Destroyed B-75 Beast 7852 | -5/Extension | Lost 6 parts (1p1n2u2w) 7882 | -5/Extension | Identified exit to Factory 7882 | -5/Extension | Discovered exit to Factory (range 3) 8148 | -5/Extension | Build established: Scavenger-Mutant 8256 | -5/Extension | Rescued a captive Derelict 8257 | -5/Extension | Rescued a captive Derelict 8313 | -5/Extension | Rescued a captive Derelict 8343 | -5/Extension | Discovered exit to Factory (range 10) 8344 | -5/Extension | Identified exit to Cetus 8344 | -5/Extension | Discovered exit to Cetus (range 6) 8504 | -5/Extension | Build established: Hacker-Skirmisher 8932 | -5/Extension | Energy Cycler disabled 9237 | -5/Extension | Entered Cetus 9251 | -5/Cetus | Spotted Cetus Guard 9251 | -5/Cetus | Spotted Cetus Guard 9251 | -5/Cetus | Spotted Cetus Guard 9251 | -5/Cetus | Spotted Cetus Guard 9273 | -5/Cetus | Destroyed Cetus Guard 9307 | -5/Cetus | Core integrity fell below 50% 9381 | -5/Cetus | Identified exit to Archives 9381 | -5/Cetus | Discovered exit to Archives (range 22) 9395 | -5/Cetus | Core integrity fell below 20% 9407 | -5/Cetus | Lost 17 parts (4p6n4u3w) 9409 | -5/Cetus | Entered Archives 9433 | -5/Archives | Identified exit to Hub_04(d) 9433 | -5/Archives | Discovered exit to Hub_04(d) (range 22) 9444 | -5/Archives | Entered Hub_04(d) 9570 | -5/Hub_04(d) | Build established: Hacker-Mutant 9644 | -5/Hub_04(d) | Discovered exit to Factory (range 15) 9661 | -5/Hub_04(d) | Lost 3 parts (1p2u) 9674 | -5/Hub_04(d) | Discovered exit to Factory (range 8) 9675 | -5/Hub_04(d) | Destroyed by Y-64 Sentinel with Wave Gun Last Messages --------------- 09657_ K-01 Serf cleans the Terminal. 09657_ Slug penetrates Wall. 09660_ Connecting with Terminal... >>Trojan(Detonate) Trojan loaded successfully. Testing... Scanning machine control network... No applicable machines found. Infected machine control systems. >>Trojan(Botnet) Trojan loaded successfully. Testing... Terminal linked with 4 systems. Awaiting botnet instructions. 09660_ K-01 Serf cleans the Terminal. 09664_ K-01 Serf collects debris. 09670_ Connecting with Terminal... >>Access(Branch) No branch access points found. 09674_ EXIT=FOUND: FACTORY Map ----- +----------------------------------------------------+ | | | | | | | | | | | | | | | | | | | | | | | | | | | | | ?????????????????????????????????????????????????? | | ?????????????????????????????????????????????????? | | ?????????????????????????????????????????????????? | | ?????????????????????????????????????????????????? | | ?????????????????????????????????????????????????? | | ?????????????????????????????????????????????????? | | ??????????????????????????????????????????????#### | | ??????????????????????????????????????????????# | | ??????????????????????????????????????????????# | | ?????????????????????????????#############????# "" | | ?????????????????????###+###?#"""""""""""#????# "" | | ?????????????????????+ @ ### """"T"""" ###### "T | | ?????????????????????+ + !+ + "" | | ?????????????????????#### # " " " " " ### "" | | ????????????????????????# # " " " [[ " " #?# | | ????????????????????????# + " " " [[ " " #?##+# | | ????????????????????????# # #????? | | ????????????????????????# ########+####+####????? | | ???????????????????????? ???????????? ## #??# # | | ???????????????????????? ! ???????????? ##?####+# | | ???????????????????????? Y ???????????? # | | ???????????????????????# ???????????? # | | ???????????????????????######??????????? + """" " | | ???????????????????????????????????????? # """" " | | ???????????????????????????????????????? # """" " | | ???????????????????????????????????????? # """" " | | ???????????????????????????????????????? / | | ????????????????????????????????????????## | | ???????????????????????????????????????? # | | ???????????????????????????????????????? ? | | ???????????????????????????????????????? # o | | ???????????????????????????????????????? # | | ???????????????????????????????????????? #+#####?# | | ???????????????????????????????????????? # #???# # | | ???????????????????????????????????????? # #???# # | | ???????????????????????????????????????? # #####+# | +----------------------------------------------------+ Best States ------------- Heat Dissipation 92 Coolant Potential 80 Energy Generation 35 Energy Capacity 415 Matter Stores 300 Matter Capacity 300 Sight Range 22 Robot Scan Range 16 Terrain Scan Density 10 Jamming Range 14 Armor Coverage 600 Resistance: KI 65 Resistance: TH 50 Resistance: EX 35 Resistance: EM 35 Resistance: I 35 Resistance: S 35 Resistance: P 35 Evasion (%) 55 Targeting Accuracy 5 Offensive Hacking 20 Item Schematics ----------------- None Robot Schematics ------------------ None Fabricated ------------ Hvy. Shock Bomb Launcher | x1 | -7/Factory | Preloaded Alien Tech Used ----------------- None Achievements -------------- None Challenges ------------ None Game ------ Seed InsulationMicrowarpMembrane Manual? 0 Play Time 01:30:00 Cumulative 110.9 hours Start 2022.05.05 @ 12:36:46 End 2022.05.05 @ 15:36:21 Sessions 1 Manual Loads 0 Difficulty Explorer Special Mode None Game No. 30 Rogue 0 Adventurer 1 Explorer 29 Win Type - Total 8 Types 5/0/1/2/0/0/0/0/0 Lore% 64 Gallery% 71 Achievement% 58 Wizard Run 0 Options --------- ASCII 0 Keyboard 1 Movement Arrows Keybinds 0 Fullscreen 0 Font 14/X11 Map View 76x50 Tactical HUD 1 Map Filters NONE Filters NONE Steam 1 RUN: 49c4b79f-5851-47b8-8e30-8b3e444239ce